[Event "Juniorallsvenskan 2019, Division 1 and 2"]
[Site "Molnlycke kulturhus, Biblioteksgatan 2, Molnlycke, Sweden"]
[Date "2019.11.24"]
[Round "5.13"]
[White "Johansson, Stina"]
[Black "Ytterberg, Felix"]
[Result "0-1"]
[TimeControl "90 minutes + 30 seconds per move from move one"]
[WhiteFideId "1739026"]
[BlackFideId "1740687"]
[WhiteElo "1425"]
[BlackElo "2005"]

1. e4 {[%clk 01:30:59]} e5 {[%clk 01:30:52]} {[%emt 00:00:09]} 2. Bc4 {[%clk
01:31:19]} {[%emt 00:00:10]} Bc5 {[%clk 01:31:14]} {[%emt 00:00:07]} 3. Nf3
{[%clk 01:31:20]} {[%emt 00:00:29]} Nc6 {[%clk 01:31:31]} {[%emt 00:00:11]} 4.
b3 {[%clk 01:31:23]} {[%emt 00:00:30]} Nf6 {[%clk 01:31:35]} {[%emt 00:00:26]}
5. Nc3 {[%clk 01:31:00]} {[%emt 00:00:53]} d6 {[%clk 01:31:48]} {[%emt
00:00:16]} 6. h3 {[%clk 01:31:02]} {[%emt 00:00:28]} h6 {[%clk 01:31:54]}
{[%emt 00:00:24]} 7. O-O {[%clk 01:30:32]} {[%emt 00:00:59]} Rg8 {[%clk
01:31:39]} {[%emt 00:00:45]} 8. Re1 {[%clk 01:27:06]} {[%emt 00:03:57]} g5
{[%clk 01:31:59]} {[%emt 00:00:10]} 9. d3 {[%clk 01:25:40]} {[%emt 00:01:57]}
g4 {[%clk 01:31:48]} {[%emt 00:00:41]} 10. hxg4 {[%clk 01:24:09]} {[%emt
00:02:00]} Bxg4 {[%clk 01:32:05]} {[%emt 00:00:10]} 11. Be3 {[%clk 01:22:39]}
{[%emt 00:02:03]} Bd4 {[%clk 01:31:06]} {[%emt 00:01:30]} 12. Bxd4 {[%clk
01:22:09]} {[%emt 00:00:59]} Nxd4 {[%clk 01:31:28]} {[%emt 00:00:08]} 13. Re3
{[%clk 01:22:13]} {[%emt 00:00:26]} Nh5 {[%clk 01:31:05]} {[%emt 00:00:54]} 14.
Nd5 {[%clk 01:20:29]} {[%emt 00:02:14]} c6 {[%clk 01:30:12]} {[%emt 00:01:23]}
15. Nb4 {[%clk 01:19:09]} {[%emt 00:01:49]} Nf4 {[%clk 01:30:24]} {[%emt
00:00:18]} 16. c3 {[%clk 01:18:04]} {[%emt 00:01:36]} Nxg2 {[%clk 01:30:42]}
{[%emt 00:00:11]} 17. Qf1 {[%clk 01:14:19]} {[%emt 00:04:15]} Bxf3 {[%clk
01:30:27]} {[%emt 00:00:46]} 18. Rxf3 {[%clk 01:14:04]} {[%emt 00:00:45]} Nxf3+
{[%clk 01:30:38]} {[%emt 00:00:18]} 19. Kh1 {[%clk 01:14:20]} {[%emt 00:00:14]}
Qh4# {[%clk 01:30:42]} {[%emt 00:00:23]} 0-1

[Event "Juniorallsvenskan 2019, Division 1 and 2"]
[Site "Molnlycke kulturhus, Biblioteksgatan 2, Molnlycke, Sweden"]
[Date "2019.11.24"]
[Round "5.14"]
[White "Ivarsson, Sebastian"]
[Black "Nystedt, Ludvig"]
[Result "1-0"]
[TimeControl "90 minutes + 30 seconds per move from move one"]
[WhiteFideId "1738593"]
[BlackFideId "1759540"]
[WhiteElo "1969"]
[BlackElo "1322"]

1. d4 {[%clk 01:30:49]} {[%emt 00:00:10]} d5 {[%clk 01:30:53]} {[%emt
00:00:07]} 2. c4 {[%clk 01:31:14]} {[%emt 00:00:06]} c6 {[%clk 01:31:19]}
{[%emt 00:00:04]} 3. Nf3 {[%clk 01:31:39]} {[%emt 00:00:04]} Nf6 {[%clk
01:31:41]} {[%emt 00:00:08]} 4. Nc3 {[%clk 01:31:59]} {[%emt 00:00:09]} Nbd7
{[%clk 01:31:26]} {[%emt 00:00:46]} 5. Bg5 {[%clk 01:31:20]} {[%emt 00:01:09]}
e6 {[%clk 01:31:40]} {[%emt 00:00:17]} 6. e3 {[%clk 01:31:36]} {[%emt
00:00:13]} Bd6 {[%clk 01:31:59]} {[%emt 00:00:11]} 7. Rc1 {[%clk 01:31:27]}
{[%emt 00:00:39]} O-O {[%clk 01:32:09]} {[%emt 00:00:21]} 8. Bd3 {[%clk
01:31:30]} {[%emt 00:00:26]} dxc4 {[%clk 01:32:28]} {[%emt 00:00:12]} 9. Bxc4
{[%clk 01:31:54]} {[%emt 00:00:05]} b5 {[%clk 01:32:55]} {[%emt 00:00:03]} 10.
Bd3 {[%clk 01:32:13]} {[%emt 00:00:11]} Bb7 {[%clk 01:30:48]} {[%emt 00:02:38]}
11. O-O {[%clk 01:31:21]} {[%emt 00:01:22]} a6 {[%clk 01:30:55]} {[%emt
00:00:23]} 12. Qe2 {[%clk 01:29:35]} {[%emt 00:02:14]} h6 {[%clk 01:26:07]}
{[%emt 00:05:20]} 13. Bh4 {[%clk 01:29:11]} {[%emt 00:00:52]} c5 {[%clk
01:23:57]} {[%emt 00:02:41]} 14. Ne4 {[%clk 01:25:58]} {[%emt 00:03:42]} Bxe4
{[%clk 01:22:10]} {[%emt 00:02:19]} 15. Bxe4 {[%clk 01:26:22]} {[%emt
00:00:06]} Rc8 {[%clk 01:22:22]} {[%emt 00:00:18]} 16. Bb7 {[%clk 01:25:55]}
{[%emt 00:00:55]} Rb8 {[%clk 01:20:50]} {[%emt 00:02:04]} 17. Bc6 {[%clk
01:23:01]} {[%emt 00:03:17]} Qb6 {[%clk 01:13:33]} {[%emt 00:07:53]} 18. Bxd7
{[%clk 01:21:23]} {[%emt 00:02:08]} Nxd7 {[%clk 01:13:51]} {[%emt 00:00:13]} 19.
dxc5 {[%clk 01:19:54]} {[%emt 00:01:58]} Nxc5 {[%clk 01:12:17]} {[%emt
00:02:03]} 20. Nd4 {[%clk 01:18:20]} {[%emt 00:02:05]} g5 {[%clk 01:07:44]}
{[%emt 00:05:04]} 21. Bg3 {[%clk 01:13:08]} {[%emt 00:05:41]} Rbc8 {[%clk
01:06:12]} {[%emt 00:02:03]} 22. f4 {[%clk 01:08:54]} {[%emt 00:04:44]} Ne4
{[%clk 01:03:44]} {[%emt 00:02:58]} 23. fxg5 {[%clk 01:06:14]} {[%emt
00:03:10]} hxg5 {[%clk 00:59:19]} {[%emt 00:04:54]} 24. Qg4 {[%clk 01:03:46]}
{[%emt 00:02:55]} f5 {[%clk 00:56:30]} {[%emt 00:03:23]} 25. Qh5 {[%clk
01:03:14]} {[%emt 00:00:55]} Rxc1 {[%clk 00:53:51]} {[%emt 00:03:15]} 26. Rxc1
{[%clk 01:03:32]} {[%emt 00:00:12]} Bxg3 {[%emt 00:05:02]} 27. hxg3 {[%clk
01:03:15]} {[%emt 00:00:44]} Kg7 {[%clk 00:47:52]} {[%emt 00:02:00]} 28. Rc6
{[%clk 01:03:08]} {[%emt 00:00:37]} Qa7 {[%clk 00:46:39]} {[%emt 00:01:43]} 29.
Nxe6+ {[%clk 01:02:54]} {[%emt 00:00:43]} Kg8 {[%clk 00:46:48]} {[%emt
00:00:22]} 30. Qg6+ {[%clk 01:03:17]} {[%emt 00:00:06]} Kh8 {[%clk 00:47:06]}
{[%emt 00:00:13]} 31. Qh6+ {[%clk 01:03:41]} {[%emt 00:00:06]} 1-0

[Event "Juniorallsvenskan 2019, Division 1 and 2"]
[Site "Molnlycke kulturhus, Biblioteksgatan 2, Molnlycke, Sweden"]
[Date "2019.11.24"]
[Round "5.15"]
[White "Johansson, Sigge"]
[Black "Dingertz, Erik"]
[Result "0-1"]
[TimeControl "90 minutes + 30 seconds per move from move one"]
[WhiteFideId "1742612"]
[BlackFideId "1741578"]
[WhiteElo "1245"]
[BlackElo "1892"]

1. e4 {[%clk 01:30:58]} {[%emt 00:00:01]} e5 {[%clk 01:30:32]} {[%emt
00:00:28]} 2. Nf3 {[%clk 01:31:19]} {[%emt 00:00:09]} Nc6 {[%clk 01:30:54]}
{[%emt 00:00:08]} 3. Bc4 {[%clk 01:31:42]} {[%emt 00:00:08]} Bc5 {[%clk
01:31:11]} {[%emt 00:00:12]} 4. O-O {[%clk 01:32:01]} {[%emt 00:00:12]} Nf6
{[%clk 01:31:33]} {[%emt 00:00:07]} 5. d3 {[%clk 01:32:04]} {[%emt 00:00:28]}
d6 {[%clk 01:31:53]} {[%emt 00:00:09]} 6. h3 {[%clk 01:32:12]} {[%emt
00:00:22]} a6 {[%clk 01:31:01]} {[%emt 00:01:22]} 7. Bg5 {[%clk 01:32:27]}
{[%emt 00:00:15]} h6 {[%clk 01:31:20]} {[%emt 00:00:11]} 8. Bh4 {[%clk
01:32:50]} {[%emt 00:00:07]} g5 {[%clk 01:30:33]} {[%emt 00:01:17]} 9. Bg3
{[%clk 01:32:24]} {[%emt 00:00:56]} g4 {[%clk 01:23:36]} {[%emt 00:07:28]} 10.
hxg4 {[%clk 01:31:09]} {[%emt 00:01:44]} Bxg4 {[%clk 01:23:53]} {[%emt
00:00:13]} 11. Bh4 {[%clk 01:30:59]} {[%emt 00:00:40]} Rg8 {[%clk 01:23:17]}
{[%emt 00:01:06]} 12. c3 {[%clk 01:30:30]} {[%emt 00:01:00]} Rg6 {[%clk
01:19:29]} {[%emt 00:04:18]} 13. Nbd2 {[%clk 01:28:07]} {[%emt 00:02:53]} Qd7
{[%clk 01:18:59]} {[%emt 00:01:00]} 14. Qe1 {[%clk 01:27:14]} {[%emt 00:01:21]}
O-O-O {[%clk 01:17:29]} {[%emt 00:02:01]} 15. b4 {[%clk 01:27:07]} {[%emt
00:00:37]} Rdg8 {[%clk 01:15:51]} {[%emt 00:02:09]} 16. bxc5 {[%clk 01:26:09]}
{[%emt 00:01:27]} Bxf3 {[%clk 01:16:15]} {[%emt 00:00:06]} 17. g3 {[%clk
01:26:30]} {[%emt 00:00:09]} Bg4 {[%clk 01:14:28]} {[%emt 00:02:18]} 18. cxd6
{[%clk 01:26:36]} {[%emt 00:00:24]} Bh3 {[%clk 01:13:14]} {[%emt 00:01:44]} 19.
dxc7 {[%clk 01:25:07]} {[%emt 00:01:59]} Bxf1 {[%clk 01:11:51]} {[%emt
00:01:52]} 20. Qxf1 {[%clk 01:25:04]} {[%emt 00:00:33]} Nh5 {[%clk 01:07:53]}
{[%emt 00:04:28]} 21. Kh2 {[%clk 01:18:14]} {[%emt 00:07:15]} Nf4 {[%clk
01:02:50]} {[%emt 00:05:39]} 22. gxf4 {[%clk 01:15:47]} {[%emt 00:02:57]} Rg2+
{[%clk 01:02:40]} {[%emt 00:00:39]} 23. Qxg2 {[%clk 01:15:52]} {[%emt
00:00:25]} Rxg2+ {[%clk 01:03:07]} {[%emt 00:00:03]} 24. Kxg2 {[%clk 01:16:16]}
{[%emt 00:00:07]} Qg4+ {[%clk 01:03:30]} {[%emt 00:00:06]} 25. Bg3 {[%clk
01:16:32]} {[%emt 00:00:14]} exf4 {[%clk 01:03:48]} {[%emt 00:00:12]} 26. Rf1
{[%clk 01:15:21]} {[%emt 00:01:37]} Ne5 {[%clk 01:02:47]} {[%emt 00:01:35]} 27.
Re1 {[%clk 01:09:16]} {[%emt 00:06:35]} b5 {[%clk 01:00:59]} {[%emt 00:02:18]}
28. Bd5 {[%clk 01:03:14]} {[%emt 00:06:32]} Nxd3 {[%clk 01:01:02]} {[%emt
00:00:26]} 29. Rf1 {[%clk 01:02:43]} {[%emt 00:00:59]} fxg3 {[%clk 01:01:29]}
{[%emt 00:00:07]} 30. f3 {[%clk 01:02:23]} {[%emt 00:00:49]} Nf4+ {[%clk
01:01:25]} {[%emt 00:00:34]} 31. Kg1 {[%clk 01:02:20]} {[%emt 00:00:31]} Qh3
{[%clk 01:01:52]} {[%emt 00:00:05]} 0-1

[Event "Juniorallsvenskan 2019, Division 1 and 2"]
[Site "Molnlycke kulturhus, Biblioteksgatan 2, Molnlycke, Sweden"]
[Date "2019.11.24"]
[Round "5.16"]
[White "Johansson-Ohman, Daniel"]
[Black "Lyngsjo, Luke"]
[Result "1-0"]
[TimeControl "90 minutes + 30 seconds per move from move one"]
[WhiteFideId "1736361"]
[BlackFideId "1755811"]
[WhiteElo "1810"]
[BlackElo "1211"]

1. c4 {[%clk 01:30:58]} {[%emt 00:00:01]} Nf6 {[%clk 01:29:47]} {[%emt
00:01:12]} 2. Nf3 {[%clk 01:29:18]} {[%emt 00:02:12]} d6 {[%clk 01:29:03]}
{[%emt 00:01:13]} 3. g3 {[%clk 01:28:48]} {[%emt 00:01:01]} g6 {[%clk
01:28:59]} {[%emt 00:00:33]} 4. Bg2 {[%clk 01:29:14]} {[%emt 00:00:04]} Bg7
{[%clk 01:29:14]} {[%emt 00:00:14]} 5. Nc3 {[%clk 01:29:23]} {[%emt 00:00:22]}
O-O {[%clk 01:28:55]} {[%emt 00:00:49]} 6. O-O {[%clk 01:29:45]} {[%emt
00:00:08]} c5 {[%clk 01:27:28]} {[%emt 00:01:57]} 7. e3 {[%clk 01:25:34]}
{[%emt 00:04:42]} Bf5 {[%clk 01:23:18]} {[%emt 00:04:39]} 8. d4 {[%clk
01:22:44]} {[%emt 00:03:20]} Nc6 {[%clk 01:19:18]} {[%emt 00:04:29]} 9. Nh4
{[%clk 01:16:59]} {[%emt 00:06:16]} Bd7 {[%clk 01:18:45]} {[%emt 00:01:02]} 10.
a3 {[%clk 01:14:02]} {[%emt 00:03:29]} Qc8 {[%clk 01:16:45]} {[%emt 00:02:29]}
11. Rb1 {[%clk 01:03:51]} {[%emt 00:10:41]} Bh3 {[%clk 01:15:48]} {[%emt
00:01:27]} 12. Nf3 {[%clk 01:03:04]} {[%emt 00:01:17]} Bxg2 {[%clk 01:15:19]}
{[%emt 00:00:59]} 13. Kxg2 {[%clk 01:03:26]} {[%emt 00:00:08]} Nd7 {[%clk
01:03:45]} {[%emt 00:12:04]} 14. Ne4 {[%clk 01:00:49]} {[%emt 00:03:08]} b6
{[%clk 01:03:04]} {[%emt 00:01:10]} 15. b4 {[%clk 00:59:08]} {[%emt 00:02:11]}
cxb4 {[%clk 00:59:22]} {[%emt 00:04:12]} 16. axb4 {[%clk 00:59:28]} {[%emt
00:00:10]} Qb7 {[%clk 00:57:45]} {[%emt 00:02:06]} 17. Qd3 {[%clk 00:51:10]}
{[%emt 00:08:49]} Rac8 {[%clk 00:49:31]} {[%emt 00:08:44]} 18. Ba3 {[%clk
00:49:34]} {[%emt 00:02:07]} Rc7 {[%clk 00:46:07]} {[%emt 00:03:53]} 19. c5
{[%clk 00:46:08]} {[%emt 00:03:56]} d5 {[%clk 00:43:44]} {[%emt 00:02:53]} 20.
Nc3 {[%clk 00:45:53]} {[%emt 00:00:45]} Nf6 {[%clk 00:35:29]} {[%emt 00:08:45]}
21. b5 {[%clk 00:45:09]} {[%emt 00:01:14]} Na5 {[%clk 00:34:54]} {[%emt
00:01:01]} 22. c6 {[%clk 00:45:33]} {[%emt 00:00:09]} Qa8 {[%clk 00:34:07]}
{[%emt 00:01:17]} 23. Ne5 {[%clk 00:45:50]} {[%emt 00:00:13]} Rfc8 {[%clk
00:25:55]} {[%emt 00:08:39]} 24. Rfc1 {[%clk 00:40:49]} {[%emt 00:05:34]} e6
{[%clk 00:23:24]} {[%emt 00:03:02]} 25. Bd6 {[%clk 00:40:34]} 1-0

[Event "Juniorallsvenskan 2019, Division 1 and 2"]
[Site "Molnlycke kulturhus, Biblioteksgatan 2, Molnlycke, Sweden"]
[Date "2019.11.24"]
[Round "5.17"]
[White "Tornberg, Carlos"]
[Black "Wernberg, Hugo"]
[Result "1-0"]
[TimeControl "90 minutes + 30 seconds per move from move one"]
[WhiteFideId "1733478"]
[BlackFideId "1737511"]
[WhiteElo "1884"]
[BlackElo "2020"]

1. e4 {[%clk 01:30:58]} {[%emt 00:00:02]} c5 {[%clk 01:30:54]} {[%emt
00:00:06]} 2. c3 {[%clk 01:31:09]} {[%emt 00:00:20]} g6 {[%clk 01:31:16]}
{[%emt 00:00:08]} 3. d4 {[%clk 01:31:36]} {[%emt 00:00:03]} cxd4 {[%clk
01:31:39]} {[%emt 00:00:06]} 4. cxd4 {[%clk 01:32:05]} {[%emt 00:00:02]} d5
{[%clk 01:32:01]} {[%emt 00:00:08]} 5. exd5 {[%clk 01:32:34]} {[%emt 00:00:01]}
Nf6 {[%clk 01:32:18]} {[%emt 00:00:13]} 6. Bb5+ {[%clk 01:32:57]} {[%emt
00:00:06]} Nbd7 {[%clk 01:32:38]} {[%emt 00:00:11]} 7. Nc3 {[%clk 01:30:44]}
{[%emt 00:02:43]} Bg7 {[%clk 01:32:12]} {[%emt 00:00:55]} 8. d6 {[%clk
01:31:06]} {[%emt 00:00:09]} exd6 {[%clk 01:31:27]} {[%emt 00:01:15]} 9. Qe2+
{[%clk 01:31:08]} {[%emt 00:00:28]} Qe7 {[%clk 01:31:29]} {[%emt 00:00:27]} 10.
Bf4 {[%clk 01:31:15]} {[%emt 00:00:23]} Qxe2+ {[%clk 01:28:22]} {[%emt
00:03:36]} 11. Bxe2 {[%clk 01:31:34]} {[%emt 00:00:11]} O-O {[%clk 01:25:09]}
{[%emt 00:03:43]} 12. Bxd6 {[%clk 01:31:51]} {[%emt 00:00:14]} Rd8 {[%clk
01:25:10]} {[%emt 00:00:28]} 13. Rd1 {[%clk 01:20:44]} {[%emt 00:11:37]} Nf8
{[%clk 01:22:45]} {[%emt 00:02:55]} 14. Be5 {[%clk 01:18:43]} {[%emt 00:02:32]}
Be6 {[%clk 01:22:19]} {[%emt 00:00:55]} 15. Bf3 {[%clk 01:17:22]} {[%emt
00:01:51]} Nd5 {[%clk 01:21:13]} {[%emt 00:01:36]} 16. Bxg7 {[%clk 01:16:40]}
{[%emt 00:01:12]} Nxc3 {[%clk 01:18:54]} {[%emt 00:02:49]} 17. Bxf8 {[%clk
01:11:34]} {[%emt 00:05:36]} Nxd1 {[%clk 01:18:59]} {[%emt 00:00:25]} 18. Ba3
{[%clk 01:11:45]} {[%emt 00:00:20]} Rxd4 {[%clk 01:17:09]} {[%emt 00:02:19]} 19.
Bxd1 {[%clk 01:10:47]} {[%emt 00:01:29]} Re8 {[%clk 01:09:00]} {[%emt
00:08:38]} 20. Be2 {[%clk 00:59:19]} {[%emt 00:11:59]} Bc4 {[%clk 01:02:31]}
{[%emt 00:06:59]} 21. Bc5 {[%clk 00:57:38]} {[%emt 00:02:11]} Rde4 {[%clk
01:02:35]} {[%emt 00:00:25]} 22. Be3 {[%clk 00:56:08]} {[%emt 00:01:59]} f5
{[%clk 01:02:51]} {[%emt 00:00:15]} 23. g3 {[%clk 00:50:21]} {[%emt 00:06:18]}
g5 {[%clk 01:01:43]} {[%emt 00:01:38]} 24. Bxc4+ {[%clk 00:46:36]} {[%emt
00:04:15]} Rxc4 {[%clk 01:02:01]} {[%emt 00:00:10]} 25. Ne2 {[%clk 00:46:57]}
{[%emt 00:00:11]} f4 {[%clk 01:01:39]} {[%emt 00:00:52]} 26. gxf4 {[%clk
00:47:15]} {[%emt 00:00:12]} gxf4 {[%clk 01:01:58]} {[%emt 00:00:10]} 27. Rg1+
{[%clk 00:47:18]} {[%emt 00:00:27]} Kf7 {[%clk 01:01:11]} {[%emt 00:01:17]} 28.
Rg4 {[%clk 00:45:32]} {[%emt 00:02:16]} Ree4 {[%clk 01:00:33]} {[%emt
00:01:09]} 29. Rxf4+ {[%clk 00:44:25]} {[%emt 00:01:37]} Rxf4 {[%clk 01:00:54]}
{[%emt 00:00:08]} 30. Nxf4 {[%clk 00:44:13]} {[%emt 00:00:42]} a6 {[%clk
01:00:36]} {[%emt 00:00:48]} 31. Kd2 {[%clk 00:43:01]} {[%emt 00:01:42]} Rc8
{[%clk 01:00:16]} {[%emt 00:00:49]} 32. Kd3 {[%clk 00:39:01]} {[%emt 00:04:31]}
Kf6 {[%clk 00:59:41]} {[%emt 00:01:04]} 33. Kd4 {[%clk 00:37:08]} {[%emt
00:02:24]} Kf5 {[%clk 00:58:53]} {[%emt 00:01:18]} 34. Kd3 {[%clk 00:28:02]}
{[%emt 00:09:36]} b5 {[%clk 00:57:12]} {[%emt 00:02:12]} 35. Ne2 {[%clk
00:27:50]} {[%emt 00:00:42]} Kg4 {[%clk 00:57:04]} {[%emt 00:00:36]} 36. Nd4
{[%clk 00:25:36]} {[%emt 00:02:45]} Kh3 {[%clk 00:56:34]} {[%emt 00:01:00]} 37.
Bf4 {[%clk 00:24:21]} {[%emt 00:01:46]} Kg2 {[%clk 00:55:30]} {[%emt 00:01:33]}
38. Bg3 {[%clk 00:24:05]} {[%emt 00:00:46]} h5 {[%clk 00:54:39]} {[%emt
00:01:20]} 39. f4 {[%clk 00:24:05]} {[%emt 00:00:31]} Rh8 {[%clk 00:53:44]}
{[%emt 00:01:23]} 40. f5 {[%clk 00:24:24]} {[%emt 00:00:14]} h4 {[%clk
00:53:42]} {[%emt 00:00:31]} 41. Be5 {[%clk 00:24:19]} {[%emt 00:00:34]} Re8
{[%clk 00:53:34]} {[%emt 00:00:38]} 42. f6 {[%clk 00:23:52]} {[%emt 00:00:58]}
h3 {[%clk 00:53:26]} {[%emt 00:00:39]} 43. Ke4 {[%clk 00:23:54]} {[%emt
00:00:28]} b4 {[%clk 00:53:25]} {[%emt 00:00:31]} 44. Kf5 {[%clk 00:23:57]}
{[%emt 00:00:27]} Rf8 {[%clk 00:53:35]} {[%emt 00:00:19]} 45. Ne6 {[%clk
00:24:10]} {[%emt 00:00:17]} Rf7 {[%clk 00:53:58]} {[%emt 00:00:07]} 46. Kg6
{[%clk 00:24:19]} {[%emt 00:00:21]} Rd7 {[%clk 00:54:05]} {[%emt 00:00:22]} 47.
f7 {[%clk 00:24:39]} {[%emt 00:00:11]} Re7 {[%clk 00:54:30]} {[%emt 00:00:05]}
48. Kf6 {[%clk 00:24:35]} {[%emt 00:00:35]} Rxf7+ {[%clk 00:54:50]} {[%emt
00:00:10]} 49. Kxf7 {[%clk 00:24:57]} {[%emt 00:00:08]} a5 {[%clk 00:55:10]}
{[%emt 00:00:10]} 50. b3 {[%clk 00:25:08]} {[%emt 00:00:18]} Kf3 {[%clk
00:55:33]} {[%emt 00:00:07]} 51. Bc7 {[%clk 00:25:19]} {[%emt 00:00:20]} Kg2
{[%clk 00:55:55]} {[%emt 00:00:07]} 52. Ng5 {[%clk 00:25:32]} {[%emt 00:00:18]}
a4 {[%clk 00:56:09]} {[%emt 00:00:16]} 53. bxa4 {[%clk 00:25:57]} {[%emt
00:00:05]} b3 {[%clk 00:56:35]} {[%emt 00:00:04]} 54. axb3 {[%clk 00:26:16]}
{[%emt 00:00:11]} Kh1 {[%clk 00:56:57]} {[%emt 00:00:07]} 55. a5 {[%clk
00:26:32]} {[%emt 00:00:15]} 1-0

[Event "Juniorallsvenskan 2019, Division 1 and 2"]
[Site "Molnlycke kulturhus, Biblioteksgatan 2, Molnlycke, Sweden"]
[Date "2019.11.24"]
[Round "5.18"]
[White "Ostlund, Joar"]
[Black "Morling, Joakim"]
[Result "1-0"]
[TimeControl "90 minutes + 30 seconds per move from move one"]
[WhiteFideId "1735020"]
[BlackFideId "1715933"]
[WhiteElo "1955"]
[BlackElo "2090"]

1. d4 {[%clk 01:30:57]} {[%emt 00:00:03]} d5 {[%clk 01:30:55]} {[%emt
00:00:05]} 2. c4 {[%clk 01:31:15]} {[%emt 00:00:12]} Nc6 {[%clk 01:31:22]}
{[%emt 00:00:03]} 3. e3 {[%clk 01:20:02]} {[%emt 00:11:43]} e5 {[%clk
01:31:45]} {[%emt 00:00:07]} 4. dxe5 {[%clk 01:16:28]} {[%emt 00:04:04]} Bb4+
{[%clk 01:30:48]} {[%emt 00:01:27]} 5. Bd2 {[%clk 01:13:48]} {[%emt 00:03:10]}
d4 {[%clk 01:27:00]} {[%emt 00:04:19]} 6. Bxb4 {[%clk 01:09:08]} {[%emt
00:05:09]} Nxb4 {[%clk 01:27:23]} {[%emt 00:00:07]} 7. exd4 {[%clk 01:06:15]}
{[%emt 00:03:23]} Qxd4 {[%clk 01:27:44]} {[%emt 00:00:09]} 8. Qxd4 {[%clk
01:06:34]} {[%emt 00:00:11]} Nc2+ {[%clk 01:27:45]} {[%emt 00:00:29]} 9. Kd2
{[%clk 01:06:08]} {[%emt 00:00:56]} Nxd4 {[%clk 01:28:09]} {[%emt 00:00:06]} 10.
Bd3 {[%clk 00:46:03]} {[%emt 00:20:34]} Ne7 {[%clk 01:21:30]} {[%emt 00:07:09]}
11. f4 {[%clk 00:44:16]} {[%emt 00:02:18]} Bd7 {[%clk 01:13:22]} {[%emt
00:08:38]} 12. Ne2 {[%clk 00:38:25]} {[%emt 00:06:20]} Nxe2 {[%clk 01:12:11]}
{[%emt 00:01:42]} 13. Kxe2 {[%clk 00:38:26]} {[%emt 00:00:29]} Bc6 {[%clk
01:12:26]} {[%emt 00:00:15]} 14. Rg1 {[%clk 00:34:42]} {[%emt 00:04:15]} O-O-O
{[%clk 01:12:20]} {[%emt 00:00:36]} 15. Nc3 {[%clk 00:33:41]} {[%emt 00:01:30]}
Rd4 {[%clk 01:10:04]} {[%emt 00:02:46]} 16. Ke3 {[%clk 00:30:37]} {[%emt
00:03:34]} Rdd8 {[%clk 01:03:34]} {[%emt 00:07:01]} 17. Rad1 {[%clk 00:28:38]}
{[%emt 00:02:26]} Rde8 {[%clk 01:01:07]} {[%emt 00:02:59]} 18. g4 {[%clk
00:20:38]} {[%emt 00:08:30]} h5 {[%clk 00:56:18]} {[%emt 00:05:19]} 19. gxh5
{[%clk 00:11:12]} {[%emt 00:09:56]} Rxh5 {[%clk 00:55:45]} {[%emt 00:01:03]} 20.
Rxg7 {[%clk 00:10:43]} {[%emt 00:00:58]} Rh3+ {[%clk 00:55:34]} {[%emt
00:00:42]} 21. Kd2 {[%clk 00:10:48]} {[%emt 00:00:23]} Bf3 {[%clk 00:45:29]}
{[%emt 00:10:37]} 22. Ne2 {[%clk 00:03:13]} {[%emt 00:08:06]} Rd8 {[%clk
00:44:39]} {[%emt 00:01:20]} 23. Rg3 {[%clk 00:01:34]} {[%emt 00:02:08]} Rxg3
{[%clk 00:43:21]} {[%emt 00:01:49]} 24. hxg3 {[%clk 00:01:41]} {[%emt
00:00:23]} Nf5 {[%clk 00:43:09]} {[%emt 00:00:41]} 25. Ke1 {[%clk 00:00:36]}
{[%emt 00:01:35]} Nxg3 {[%clk 00:42:46]} {[%emt 00:00:53]} 26. Kf2 {[%clk
00:00:53]} {[%emt 00:00:12]} Be4 {[%clk 00:26:34]} {[%emt 00:16:43]} 27. Nxg3
{[%clk 00:01:11]} {[%emt 00:00:12]} Bxd3 {[%clk 00:26:57]} {[%emt 00:00:07]} 28.
c5 {[%clk 00:01:08]} {[%emt 00:00:33]} b6 {[%clk 00:26:08]} {[%emt 00:01:19]}
29. cxb6 {[%clk 00:01:17]} {[%emt 00:00:22]} axb6 {[%clk 00:26:25]} {[%emt
00:00:12]} 30. Ke3 {[%clk 00:01:36]} {[%emt 00:00:11]} Rg8 {[%clk 00:26:43]}
{[%emt 00:00:12]} 31. Rxd3 {[%clk 00:01:30]} {[%emt 00:00:36]} Rxg3+ {[%clk
00:27:07]} {[%emt 00:00:06]} 32. Ke4 {[%clk 00:01:49]} {[%emt 00:00:11]} Rg2
{[%clk 00:27:24]} {[%emt 00:00:14]} 33. Kf5 {[%clk 00:01:35]} {[%emt 00:00:44]}
Rxb2 {[%clk 00:24:51]} {[%emt 00:03:02]} 34. Kf6 {[%clk 00:01:59]} {[%emt
00:00:06]} c5 {[%clk 00:25:16]} {[%emt 00:00:05]} 35. Re3 {[%clk 00:01:11]}
{[%emt 00:01:18]} Rf2 {[%clk 00:20:10]} {[%emt 00:05:37]} 36. Re4 {[%clk
00:01:21]} {[%emt 00:00:20]} Rxa2 {[%clk 00:20:02]} {[%emt 00:00:37]} 37. Kxf7
{[%clk 00:01:37]} {[%emt 00:00:14]} Ra7+ {[%clk 00:20:24]} {[%emt 00:00:08]} 38.
Kf8 {[%clk 00:01:39]} {[%emt 00:00:28]} Kd7 {[%clk 00:12:07]} {[%emt 00:08:47]}
39. f5 {[%clk 00:01:03]} {[%emt 00:01:06]} Kc6 {[%clk 00:11:30]} {[%emt
00:01:07]} 40. e6 {[%clk 00:00:56]} {[%emt 00:00:37]} Kd5 {[%clk 00:11:27]}
{[%emt 00:00:33]} 41. Re1 {[%clk 00:01:05]} {[%emt 00:00:20]} Ra8+ {[%clk
00:07:20]} {[%emt 00:04:38]} 42. Kf7 {[%clk 00:01:11]} {[%emt 00:00:25]} b5
{[%clk 00:07:41]} {[%emt 00:00:08]} 43. e7 {[%clk 00:01:16]} {[%emt 00:00:25]}
c4 {[%clk 00:07:53]} {[%emt 00:00:18]} 44. e8=Q {[%clk 00:01:30]} {[%emt
00:00:15]} Rxe8 {[%clk 00:08:21]} {[%emt 00:00:03]} 45. Kxe8 {[%clk 00:01:48]}
{[%emt 00:00:12]} 1-0